fUSD/lending_fUSD_20240414
["ID","MTS","AMOUNT","RATE_DAILY","PERIOD"]
[322582139,1713084640412,-195.876369,0.00033973,14]
[322582140,1713084640422,-453.598544,0.00034,120]
[322582141,1713084640431,-152.28,0.00034141,2]
[322582142,1713084640441,-1000.0,0.00034247,2]
[322582143,1713084640450,-2235.4099,0.00034259,7]
[322582144,1713084640459,-2816.65934613,0.00034259,6]
[322582145,1713084640469,-167.11,0.00034305,2]
[322582146,1713084640483,-982.7,0.00034333,2]
[322582147,1713084640492,-214.28,0.00034348,3]
[322582148,1713084640502,-153.28,0.00034349,2]
[322582149,1713084640511,-2265.14622942,0.00034352,4]
[322582150,1713084640520,-2605.45039561,0.00034352,4]
[322582151,1713084640530,-546.65495573,0.00034353,2]
[322582152,1713084640540,-156.64808872,0.00034353,4]
[322582153,1713084640551,-4539.43504486,0.00034353,4]
[322582154,1713084640560,-227.36701672,0.00034355,4]
[322582155,1713084640569,-3753.78062122,0.00034355,4]
[322582156,1713084640578,-155.0,0.00034355,4]
[322582157,1713084640587,-157.04314405,0.00034355,4]
[322582158,1713084640596,-189.07385137,0.00034356,4]
[322582159,1713084640605,-600.75564583,0.00034356,4]
[322582160,1713084640615,-161.79781133,0.00034357,4]
[322582161,1713084640624,-155.75084703,0.00034357,2]
[322582162,1713084640633,-1368.92,0.00034358,7]
[322582163,1713084640643,-47860.73717688,0.00034359,4]
[322582164,1713084640654,-369.90456315,0.00034359,4]
[322582165,1713084640666,-330494.71458955,0.00034359,4]
[322582166,1713084640787,-292.20549508,0.0002889,2]
[322582167,1713084640796,-27101.04121656,0.00034359,4]
[322582168,1713084640806,-1368.92,0.00034359,7]
[322582169,1713084640815,-111361.28510563,0.0003436,7]
[322582170,1713084640825,-534.0,0.0003452,2]
[322582171,1713084640834,-713.0,0.0003452,2]
[322582172,1713084640844,-150.0,0.00034548,10]
[322582173,1713084640898,-155.15,0.00034699,2]
[322582174,1713084640908,-195.876369,0.00034795,14]
[322582175,1713084640917,-293.22171417,0.000348,5]
[322582176,1713084640927,-15287.88792509,0.000348,14]
[322582177,1713084640937,-200.0,0.00034849,2]
[322582178,1713084640948,-3124.15332426,0.000349,2]
[322582179,1713084640961,-167.0,0.00034934,2]
[322582180,1713084640972,-200.0,0.00034945,2]
[322582181,1713084640992,-296.61,0.00035,2]
[322582182,1713084641004,-5000.0,0.00035,4]
[322582183,1713084641013,-155.18100376,0.00035,4]
[322582184,1713084641023,-3302.15021382,0.00035,4]
[322582185,1713084641033,-500.0,0.00035,7]
[322582186,1713084641042,-850.0,0.00035,3]
[322582187,1713084641052,-1000.0,0.00035,7]
[322582188,1713084641061,-277.23955994,0.00035207,7]
[322582189,1713084641071,-1569.31,0.00035288,15]
[322582190,1713084641081,-200.0,0.00035305,2]
[322582191,1713084641091,-152.28,0.00035406,2]
[322582192,1713084641100,-1099.98293017,0.00035477,5]
[322582193,1713084641111,-2105.97739728,0.000356,30]
[322582194,1713084641120,-195.876369,0.00035616,14]
[322582195,1713084641130,-153.01,0.00035827,2]
[322582196,1713084641141,-199.48,0.00035868,2]
[322582197,1713084641150,-534.0,0.0003589,7]
[322582198,1713084641160,-713.0,0.0003589,7]
[322582199,1713084641169,-7500.0,0.00035898,2]
[322582200,1713084641178,-1000.0,0.00035898,120]
[322582201,1713084641187,-7728.86776466,0.00035898,8]
[322582202,1713084641197,-3124.15332426,0.000359,2]
[322582203,1713084641206,-167.0,0.00035984,2]
[322582204,1713084641216,-153.28,0.00035988,2]
[322582205,1713084641226,-153.28,0.00035988,2]
[322582206,1713084641239,-153.28,0.00035988,2]
[322582207,1713084641249,-153.28,0.0003599,2]
[322582208,1713084641258,-1368.92,0.00035997,7]
[322582209,1713084641267,-1368.92,0.00035997,7]
[322582210,1713084641276,-1368.92,0.00035997,7]
[322582211,1713084641285,-1368.92,0.00035997,7]
[322582212,1713084641295,-550272.21455606,0.00035998,2]
[322582213,1713084641306,-345847.86723741,0.00035998,4]
[322582214,1713084641317,-4447.97978597,0.00035999,3]
[322582215,1713084641328,-1000.0,0.00035999,2]
[322582216,1713084641338,-1000.0,0.00035999,2]
[322582217,1713084641349,-1000.0,0.00035999,2]
[322582218,1713084641360,-1000.0,0.00035999,2]
[322582219,1713084641371,-1000.0,0.00035999,2]
[322582220,1713084641382,-1000.0,0.00035999,2]
[322582221,1713084641391,-765.0,0.00035999,2]
[322582222,1713084641400,-50000.0,0.00036,6]
[322582223,1713084641410,-86983.66,0.000361,30]
[322582224,1713084641419,-2100.0,0.00036165,7]
[322582225,1713084641428,-150.0,0.00036165,7]
[322582226,1713084641438,-151.238,0.00036165,7]
[322582227,1713084641447,-1175.58479218,0.00036201,2]
[322582228,1713084641457,-200.0,0.00036201,2]
[322582229,1713084641466,-400.0,0.00036207,3]
[322582230,1713084641475,-1003.1,0.000364,2]
[322582231,1713084641491,-600.0,0.000364,120]
[322582232,1713084641669,-167.11,0.00036431,2]
[322582233,1713084641708,-195.876369,0.00036438,14]
[322582234,1713084641717,-436.0,0.00036455,2]
[322582235,1713084641729,-1130.0,0.00036455,2]
[322582236,1713084641738,-307.665,0.00036455,2]
[322582237,1713084641748,-443.0,0.00036455,2]
[322582238,1713084641757,-355.0,0.00036455,2]
[322582239,1713084641767,-214.0,0.00036455,2]
[322582240,1713084641776,-4803.0,0.00036455,2]
[322582241,1713084641786,-953.608,0.00036455,2]
[322582242,1713084641795,-982.7,0.00036596,2]
[322582243,1713084641805,-155.15,0.00036627,2]
[322582244,1713084641814,-152.28,0.0003667,2]
[322582245,1713084641824,-3124.15332426,0.000369,2]
[322582246,1713084641833,-181.22,0.0003691,120]
[322582247,1713084641843,-2447.165142,0.00036999,2]
[322582248,1713084641853,-50000.0,0.00037,7]
[322582249,1713084641862,-900.0,0.00037,3]
[322582250,1713084641873,-167.0,0.00037033,2]
[322582251,1713084641882,-2816.65934608,0.00037065,8]
[322582252,1713084641892,-1000.0,0.00037206,2]
[322582253,1713084641901,-713.0,0.0003726,7]
[322582254,1713084641910,-195.876369,0.0003726,14]
[322582255,1713084641920,-199.48,0.00037302,2]
[322582256,1713084641930,-7728.86776458,0.00037358,10]
[322582257,1713084641939,-160.0,0.00037533,3]
[322582258,1713084641948,-160.0,0.00037541,3]
[322582259,1713084641959,-160.0,0.0003755,3]
[322582260,1713084641969,-160.0,0.00037559,3]
[322582261,1713084641984,-3124.15332426,0.000379,2]
[322582262,1713084641993,-152.28,0.00037935,2]
[322582263,1713084642002,-1368.92,0.00037999,7]
[322582264,1713084642012,-50000.0,0.00038,8]
[322582265,1713084642022,-1569.31,0.00038027,15]
[322582266,1713084642034,-150.0,0.00038134,120]
[322582269,1713084642045,-1547.3,0.000385,3]
[322582271,1713084642056,-1547.3,0.000385,3]
[322582272,1713084642068,-1547.3,0.000385,3]
[322582273,1713084642078,-1547.3,0.000385,3]
[322582274,1713084642087,-1547.3,0.000385,3]
[322582275,1713084642096,-1547.3,0.000385,3]
[322582276,1713084642106,-1547.3,0.000385,3]
[322582277,1713084642119,-1547.3,0.000385,3]
[322582278,1713084642130,-1547.3,0.000385,3]
[322582279,1713084642140,-1547.3,0.000385,3]
[322582280,1713084642150,-1547.3,0.000385,3]
[322582281,1713084642160,-1547.3,0.000385,3]
[322582282,1713084642170,-1547.3,0.000385,3]
[322582283,1713084642180,-1547.3,0.000385,3]
[322582284,1713084642190,-1547.3,0.000385,3]
[322582285,1713084642201,-1547.3,0.000385,3]
[322582286,1713084642211,-1547.3,0.000385,3]
[322582287,1713084642221,-1547.3,0.000385,3]
[322582288,1713084642232,-1547.3,0.000385,3]
[322582289,1713084642243,-1547.3,0.000385,3]
[322582290,1713084642255,-155.15,0.00038555,2]
[322582291,1713084642264,-713.0,0.0003863,7]
[322582292,1713084642276,-199.48,0.00038737,2]
[322582293,1713084642287,-7728.86776458,0.00038817,12]
[322582294,1713084642298,-982.7,0.0003886,2]
[322582295,1713084642309,-3124.15332426,0.000389,2]
[322582296,1713084642319,-153.28,0.0003899,2]
[322582297,1713084642328,-50000.0,0.00039,9]
[322582298,1713084642338,-950.0,0.00039,3]
[322582299,1713084642347,-152.28,0.00039199,2]
[322582300,1713084642356,-289.95,0.00039455,2]
[322582301,1713084642365,-355.0,0.00039455,2]
[322582302,1713084642375,-200.0,0.00039471,15]
[322582303,1713084642385,-150.0,0.00039754,120]
[322582304,1713084642394,-2816.65934608,0.00039871,9]
[322582305,1713084642404,-3124.15332426,0.000399,2]
[322582306,1713084642414,-1368.92,0.00039999,7]
[322582307,1713084642422,-100000.0,0.0004,40]
[322582308,1713084642432,-27133.92829464,0.0004,4]
[322582309,1713084642441,-6789.39377163,0.0004,4]
[322582310,1713084642451,-548.35400054,0.0004,4]
[322582311,1713084642460,-959.45180685,0.0004,30]
[322582312,1713084642470,-193.89130492,0.0004,2]
[322582313,1713084642482,-210.58524778,0.0004,120]
[322582314,1713084642492,-2524.71893379,0.0004,5]
[322582315,1713084642502,-507.79199758,0.0004,120]
[322582316,1713084642512,-713.0,0.0004,7]
[322582317,1713084642522,-7728.86776458,0.00040277,14]
[322582319,1713084642532,-152.28,0.00040464,2]
[322582320,1713084642542,-155.15,0.00040482,2]
[322582321,1713084642552,-1000.0,0.00040588,2]
[322582322,1713084642563,-1569.31,0.00040767,15]
[322582323,1713084642573,-1043.0,0.00040849,5]
[322582324,1713084642583,-500.0,0.00040853,20]
[322582327,1713084642592,-200.0,0.00040853,20]
[322582329,1713084642601,-150.0,0.00040865,120]
[322582331,1713084642611,-712.41,0.00040881,2]
[322582333,1713084642621,-3124.15332426,0.000409,2]
[322582335,1713084642630,-100000.0,0.00041,41]
[322582337,1713084642639,-20000.0,0.00041,5]
[322582338,1713084642649,-1000.0,0.00041,3]
[322582339,1713084642658,-154.9980197,0.00041026,30]
[322582340,1713084642668,-170.77931922,0.00041071,30]
[322582342,1713084642678,-1000.0,0.00041095,2]
[322582344,1713084642689,-154.76,0.00041096,2]
[322582345,1713084642699,-304.7,0.000411,7]
[322582346,1713084642709,-982.7,0.00041124,2]
[322582347,1713084642720,-185.0180381,0.00041126,30]
[322582348,1713084642734,-158.97781202,0.00041159,30]
[322582349,1713084642744,-342.14,0.000412,7]
[322582351,1713084642754,-170.77931922,0.00041302,30]
[322582353,1713084642764,-153.28,0.00041328,2]
[322582354,1713084642774,-713.0,0.0004137,7]
[322582355,1713084642784,-150.0,0.00041468,120]
[322582356,1713084642794,-170.77931922,0.00041523,30]
[322582357,1713084642805,-181.22,0.00041524,120]
[322582358,1713084642815,-157.11425242,0.00041524,30]
[322582359,1713084642824,-170.77931922,0.00041598,30]
[322582360,1713084642834,-152.28,0.00041728,2]
[322582361,1713084642844,-7728.86776458,0.00041737,16]
[322582362,1713084642854,-166.84086597,0.00041897,30]
[322582363,1713084642863,-3124.15332426,0.000419,2]
[322582364,1713084642873,-304.7,0.000419,7]
[322582365,1713084642883,-342.14,0.000419,7]
[322582366,1713084642893,-187.52025476,0.000419,2]
[322582367,1713084642902,-154.9980197,0.00041911,30]
[322582368,1713084642911,-154.78946012,0.00041932,30]
[322582369,1713084642921,-160.56350448,0.00041961,30]
[322582370,1713084642930,-1368.92,0.00041999,7]
[322582371,1713084642939,-100000.0,0.00042,42]
[322582372,1713084642949,-1547.3,0.00042,4]
[322582373,1713084642959,-1547.3,0.00042,4]
[322582374,1713084642970,-1547.3,0.00042,4]
[322582375,1713084642986,-1547.3,0.00042,4]
[322582376,1713084642996,-1547.3,0.00042,4]
[322582377,1713084643010,-1547.3,0.00042,4]
[322582378,1713084643019,-1547.3,0.00042,4]
[322582379,1713084643031,-1547.3,0.00042,4]
[322582380,1713084643041,-1547.3,0.00042,4]
[322582381,1713084643054,-1547.3,0.00042,4]
[322582382,1713084643064,-1547.3,0.00042,4]
[322582383,1713084643074,-1547.3,0.00042,4]
[322582384,1713084643083,-1547.3,0.00042,4]
[322582385,1713084643093,-1547.3,0.00042,4]
[322582386,1713084643103,-1547.3,0.00042,4]
[322582387,1713084643113,-1547.3,0.00042,4]
[322582388,1713084643122,-1547.3,0.00042,4]
[322582389,1713084643131,-1547.3,0.00042,4]
[322582390,1713084643141,-1547.3,0.00042,4]
[322582391,1713084643151,-1547.3,0.00042,4]
[322582392,1713084643160,-170.77931922,0.00042021,30]
[322582393,1713084643170,-160.56350448,0.00042095,30]
[322582394,1713084643179,-152.47580633,0.00042096,30]
[322582395,1713084643188,-157.03403006,0.00042131,30]
[322582396,1713084643198,-156.3106271,0.00042257,30]
[322582398,1713084643207,-152.47580633,0.00042289,30]
[322582399,1713084643216,-155.03847772,0.00042325,30]
[322582400,1713084643226,-342.14,0.000424,7]
[322582401,1713084643238,-155.15,0.0004241,2]
[322582403,1713084643248,-158.97781202,0.00042434,30]
[322582404,1713084643257,-159.56304092,0.0004245,30]
[322582405,1713084643268,-152.45161625,0.00042462,30]
[322582406,1713084643278,-1000.0,0.00042465,2]
[322582407,1713084643287,-157.041416,0.00042498,59]
[322582408,1713084643296,-304.7,0.000425,7]
[322582409,1713084643306,-185.0180381,0.00042535,30]
[322582410,1713084643316,-185.0180381,0.00042628,30]
[322582411,1713084643326,-2816.65934608,0.00042677,10]
[322582412,1713084643335,-166.84086597,0.00042706,30]
[322582413,1713084643346,-150.0,0.0004274,120]
[322582415,1713084643356,-713.0,0.0004274,7]
[322582416,1713084643367,-157.041416,0.00042798,60]
[322582418,1713084643379,-185.0180381,0.00042846,30]
[322582421,1713084643389,-165.25180579,0.00042867,17]
[322582423,1713084643399,-963.23175079,0.0004289,10]
[322582424,1713084643410,-187.69455529,0.000429,120]
[322582425,1713084643421,-3124.15332426,0.000429,2]
[322582426,1713084643432,-342.14,0.000429,7]
[322582427,1713084643443,-160.56350448,0.00042902,30]
[322582428,1713084643453,-185.0180381,0.00042929,30]
[322582429,1713084643464,-165.88157061,0.00042953,30]
[322582430,1713084643474,-152.28,0.00042993,2]
[322582431,1713084643487,-100000.0,0.00043,43]
[322582432,1713084643504,-1050.0,0.00043,3]
[322582433,1713084643520,-152.45161625,0.0004301,30]
[322582434,1713084643531,-151.95,0.0004305,2]
[322582435,1713084643542,-158.97781202,0.00043056,30]
[322582436,1713084643553,-304.7,0.000431,7]
[322582437,1713084643564,-185.0180381,0.0004316,30]
[322582438,1713084643575,-170.77931922,0.00043189,30]
[322582439,1713084643586,-7728.86776458,0.00043196,17]
[322582440,1713084643598,-157.041416,0.00043198,61]
[322582441,1713084643609,-185.0180381,0.00043202,30]
[322582442,1713084643620,-185.0180381,0.00043269,30]
[322582443,1713084643631,-150.0,0.00043329,2]
[322582444,1713084643641,-155.55,0.00043329,2]
[322582445,1713084643652,-324.94,0.00043329,2]
[322582446,1713084643663,-161.17,0.00043329,2]
[322582447,1713084643674,-150.0,0.00043329,2]
[322582448,1713084643684,-152.05,0.00043329,2]
[322582449,1713084643694,-150.0,0.00043329,2]
[322582450,1713084643704,-150.0,0.00043329,2]
[322582451,1713084643715,-150.0,0.00043329,2]
[322582452,1713084643725,-150.0,0.00043329,2]
[322582453,1713084643738,-300.0,0.00043329,2]
[322582454,1713084643748,-153.49,0.00043329,2]
[322582455,1713084643759,-150.0,0.00043329,2]
[322582456,1713084643768,-150.0,0.00043329,2]
[322582457,1713084643779,-412.35,0.00043329,2]
[322582458,1713084643788,-908.17,0.00043329,2]
[322582459,1713084643798,-150.0,0.00043329,2]
[322582460,1713084643808,-908.17,0.00043329,2]
[322582461,1713084643818,-908.17,0.00043329,2]
[322582462,1713084643829,-150.06,0.00043329,2]
[322582463,1713084643840,-908.17,0.00043329,2]
[322582464,1713084643850,-412.35,0.00043329,2]
[322582465,1713084643860,-908.17,0.00043329,2]
[322582466,1713084643871,-908.17,0.00043329,2]
[322582467,1713084643881,-908.17,0.00043329,2]
[322582468,1713084643891,-412.35,0.00043329,2]
[322582469,1713084643901,-908.17,0.00043329,2]
[322582470,1713084643912,-908.17,0.00043329,2]
[322582471,1713084643922,-412.35,0.00043329,2]
[322582472,1713084643932,-908.17,0.00043329,2]
[322582473,1713084643942,-908.17,0.00043329,2]
[322582474,1713084643952,-908.17,0.00043329,2]
[322582475,1713084643962,-908.17,0.00043329,2]
[322582476,1713084643973,-908.17,0.00043329,2]
[322582477,1713084643987,-908.17,0.00043329,2]
[322582478,1713084643998,-908.17,0.00043329,2]
[322582479,1713084644008,-412.35,0.00043329,2]
[322582480,1713084644020,-412.35,0.00043329,2]
[322582481,1713084644030,-412.35,0.00043329,2]
[322582482,1713084644040,-159.98891826,0.0004336,30]
[322582483,1713084644051,-982.7,0.00043388,2]
[322582484,1713084644062,-342.14,0.000434,7]
[322582485,1713084644073,-160.56350448,0.00043431,30]
[322582486,1713084644085,-167.2194752,0.00043446,30]
[322582487,1713084644095,-170.77931922,0.00043487,30]
[322582488,1713084644106,-157.041416,0.00043498,62]
[322582489,1713084644117,-1569.31,0.00043507,15]
[322582490,1713084644128,-170.77931922,0.0004351,30]
[322582491,1713084644140,-150.0,0.0004354,120]
[322582492,1713084644151,-150.0,0.00043597,2]
[322582493,1713084644161,-150.0,0.00043597,2]
[322582494,1713084644172,-150.0,0.00043597,2]
[322582495,1713084644183,-150.0,0.00043597,2]
[322582496,1713084644194,-150.0,0.00043597,2]
[322582497,1713084644314,-150.0,0.00043597,2]
[322582498,1713084644325,-150.0,0.00043597,2]
[322582499,1713084644335,-150.0,0.00043597,2]
[322582500,1713084644346,-160.56350448,0.00043601,30]
[322582501,1713084644357,-500.0,0.00043635,4]
[322582502,1713084644367,-500.0,0.00043635,4]
[322582503,1713084644377,-500.0,0.00043635,4]
[322582504,1713084644387,-500.0,0.00043635,4]
[322582505,1713084644397,-500.0,0.00043635,4]
[322582506,1713084644408,-500.0,0.00043635,4]
[322582507,1713084644418,-500.0,0.00043635,4]
[322582508,1713084644429,-500.0,0.00043635,4]
[322582509,1713084644440,-500.0,0.00043635,4]
[322582510,1713084644449,-500.0,0.00043635,4]
[322582511,1713084644460,-500.0,0.00043635,4]
[322582512,1713084644470,-500.0,0.00043635,4]
[322582513,1713084644483,-500.0,0.00043635,4]
[322582514,1713084644494,-392.0,0.00043635,4]
[322582515,1713084644505,-155.03847772,0.00043639,30]
[322582516,1713084644515,-304.7,0.000437,7]
[322582517,1713084644526,-152.47580633,0.0004372,30]
[322582518,1713084644536,-157.041416,0.00043798,63]
[322582519,1713084644547,-1000.0,0.00043835,2]
[322582520,1713084644558,-7674.04,0.00043836,2]
[322582521,1713084644569,-2018.7,0.00043836,2]
[322582522,1713084644580,-157.03403006,0.00043844,30]
[322582523,1713084644590,-3124.15332426,0.000439,2]
[322582524,1713084644600,-342.14,0.000439,7]
[322582525,1713084644611,-158.97781202,0.00043902,30]
[322582526,1713084644622,-166.75619801,0.00043926,30]
[322582527,1713084644631,-157.11425242,0.00043934,30]
[322582528,1713084644641,-154.9980197,0.00043958,30]
[322582529,1713084644651,-1554.581326,0.00043963,30]
[322582530,1713084644661,-1387.036605,0.00043963,30]
[322582531,1713084644672,-185.0180381,0.00043979,30]
[322582532,1713084644683,-1368.92,0.00043999,30]
[322582533,1713084644694,-100000.0,0.00044,44]
[322582534,1713084644704,-150.0,0.00044,44]
[322582535,1713084644716,-158.97781202,0.00044009,30]
[322582536,1713084644726,-154.9980197,0.0004404,30]
[322582537,1713084644737,-152.47580633,0.00044064,30]
[322582538,1713084644748,-713.0,0.00044109,7]
[322582539,1713084644757,-170.77931922,0.00044118,30]
[322582540,1713084644767,-157.03403006,0.00044127,30]
[322582541,1713084644779,-158.97781202,0.00044158,30]
[322582542,1713084644790,-157.041416,0.00044198,64]
[322582543,1713084644800,-154.78946012,0.00044202,30]
[322582544,1713084644809,-153.01,0.00044257,2]
[322582545,1713084644820,-152.28,0.00044257,2]
[322582546,1713084644829,-154.9980197,0.00044265,30]
[322582547,1713084644839,-152.47580633,0.0004429,30]
[322582548,1713084644850,-176.79003435,0.00044291,30]
[322582549,1713084644860,-304.7,0.000443,7]
[322582550,1713084644869,-155.15,0.00044338,2]
[322582551,1713084644879,-159.98891826,0.00044344,30]
[322582552,1713084644890,-154.87360873,0.00044364,30]
[322582553,1713084644900,-160.56350448,0.00044381,30]
[322582554,1713084644909,-170.77931922,0.0004441,30]
[322582555,1713084644920,-152.47580633,0.00044427,30]
[322582556,1713084644930,-153.57672703,0.00044469,30]
[322582557,1713084644940,-157.041416,0.00044498,65]
[322582558,1713084644950,-153.57672703,0.00044499,30]
[322582559,1713084644961,-1554.581326,0.00044512,30]
[322582560,1713084644971,-1387.036605,0.00044512,30]
[322582561,1713084644985,-185.0180381,0.00044515,30]
[322582562,1713084644995,-157.32897233,0.0004455,30]
[322582563,1713084645006,-154.78946012,0.00044579,30]
[322582564,1713084645015,-153.57672703,0.00044645,30]
[322582565,1713084645025,-7728.86776458,0.00044656,19]
[322582566,1713084645035,-150.0,0.0004466,120]
[322582567,1713084645045,-185.0180381,0.00044723,30]
[322582568,1713084645056,-158.97781202,0.00044788,30]
[322582569,1713084645065,-167.2194752,0.00044842,30]
[322582570,1713084645075,-3124.15332426,0.000449,2]
[322582571,1713084645085,-152.47580633,0.00044905,30]
[322582572,1713084645093,-185.0180381,0.00044923,30]
[322582573,1713084645103,-154.9980197,0.00044925,30]
[322582574,1713084645112,-155.03847772,0.00044975,30]
[322582575,1713084645122,-5000.0,0.00044986,4]
[322582576,1713084645131,-100000.0,0.00045,45]
[322582577,1713084645141,-168.89769546,0.00045,4]
[322582578,1713084645151,-782.09175157,0.00045,120]
[322582579,1713084645161,-1000.0,0.00045,120]
[322582580,1713084645171,-1100.0,0.00045,3]
[322582581,1713084645181,-342.14,0.00045,7]
[322582582,1713084645190,-155.062096,0.00045,30]
[322582583,1713084645200,-699.69555457,0.00045,60]
[322582584,1713084645209,-1554.581326,0.00045062,30]
[322582585,1713084645219,-1387.036605,0.00045062,30]
[322582586,1713084645229,-201.58764879,0.00045086,30]
[322582587,1713084645239,-170.77931922,0.0004509,30]
[322582588,1713084645249,-1000.0,0.00045205,2]
[322582589,1713084645259,-160.56350448,0.00045223,30]
[322582590,1713084645269,-165.88157062,0.00045296,30]
[322582591,1713084645279,-152.47580633,0.00045365,30]
[322582592,1713084645289,-154.38291629,0.00045378,30]
[322582593,1713084645298,-152.45161625,0.00045436,30]
[322582594,1713084645308,-852.0,0.00045479,30]
[322582595,1713084645318,-166.66666667,0.00045481,30]
[322582596,1713084645327,-2816.65934608,0.00045482,12]
[322582597,1713084645336,-167.041416,0.00045498,68]
[322582598,1713084645346,-150.0,0.000455,8]
[322582599,1713084645356,-152.28,0.00045522,2]
[322582600,1713084645365,-155.03847772,0.00045523,30]
[322582601,1713084645375,-1547.3,0.000456,5]
[322582602,1713084645384,-1547.3,0.000456,5]
[322582603,1713084645394,-1547.3,0.000456,5]
[322582604,1713084645404,-1547.3,0.000456,5]
[322582605,1713084645414,-1547.3,0.000456,5]
[322582606,1713084645424,-1547.3,0.000456,5]
[322582607,1713084645435,-1547.3,0.000456,5]
[322582608,1713084645445,-1547.3,0.000456,5]
[322582609,1713084645455,-1547.3,0.000456,5]
[322582611,1713084645465,-1547.3,0.000456,5]
[322582613,1713084645474,-1547.3,0.000456,5]
[322582614,1713084645487,-1547.3,0.000456,5]
[322582615,1713084645497,-1547.3,0.000456,5]
[322582616,1713084645507,-1547.3,0.000456,5]
[322582617,1713084645517,-1547.3,0.000456,5]
[322582618,1713084645527,-1547.3,0.000456,5]
[322582619,1713084645537,-1547.3,0.000456,5]
[322582620,1713084645547,-1547.3,0.000456,5]
[322582621,1713084645557,-1547.3,0.000456,5]
[322582622,1713084645568,-1547.3,0.000456,5]
[322582623,1713084645578,-1554.581326,0.00045611,30]
[322582624,1713084645589,-1387.036605,0.00045611,30]
[322582625,1713084645598,-152.47580633,0.0004562,30]
[322582626,1713084645608,-155.46548869,0.00045642,30]
[322582627,1713084645618,-982.7,0.00045652,2]
[322582628,1713084645627,-200.0,0.00045685,25]
[322582629,1713084645637,-1000.0,0.00045685,50]
[322582630,1713084645646,-500.0,0.00045685,30]
[322582631,1713084645656,-200.0,0.00045685,30]
[322582632,1713084645666,-152.47580633,0.0004572,30]
[322582633,1713084645676,-158.97781202,0.00045763,30]
[322582634,1713084645686,-159.98891826,0.0004577,30]
[322582635,1713084645696,-150.0,0.00045793,120]
[322582636,1713084645705,-157.041416,0.00045798,70]
[322582637,1713084645715,-157.03403006,0.00045862,30]
[322582638,1713084645725,-3124.15332426,0.000459,2]
[322582639,1713084645734,-1368.92,0.00045999,30]
[322582640,1713084645745,-100000.0,0.00046,46]
[322582641,1713084645754,-150.0,0.00046,8]
[322582642,1713084645764,-2555.95,0.00046,31]
[322582643,1713084645774,-2500.01,0.00046,31]
[322582644,1713084645784,-185.0,0.0004606,45]
[322582645,1713084645794,-152.47580633,0.00046092,30]
[322582646,1713084645804,-155.46548869,0.00046114,30]
[322582647,1713084645814,-7728.86776458,0.00046115,21]
[322582648,1713084645824,-1554.581326,0.00046161,30]
[322582649,1713084645835,-1387.036605,0.00046161,30]
[322582650,1713084645846,-160.56350448,0.00046229,30]
[322582651,1713084645856,-1569.31,0.00046247,15]
[322582652,1713084645865,-155.15,0.00046266,2]
[322582653,1713084645875,-152.45161625,0.00046305,30]
[322582654,1713084645884,-2262.09733858,0.00046436,20]
[322582655,1713084645894,-157.041416,0.00046498,74]
[322582656,1713084645903,-150.0,0.000465,8]
[322582657,1713084645913,-5800.0,0.0004655,7]
[322582658,1713084645924,-5800.0,0.00046558,7]
[322582659,1713084645935,-5800.0,0.00046567,7]
[322582660,1713084645946,-5800.0,0.00046575,7]
[322582661,1713084645957,-443.91136319,0.00046575,2]
[322582662,1713084645967,-1000.0,0.000466,4]